[Event "*** SCC Grand Prix: Titled Tuesday Blitz"]
[Site "Chess.com"]
[Date "2020.08.25"]
[Round "7"]
[White "milenapn"]
[Black "Bastiandash"]
[Result "0-1"]
[WhiteElo "1982"]
[BlackElo "2390"]
[TimeControl "180+1"]
[EndTime "11:15:19 PDT"]
[Termination "Bastiandash won by resignation"]

1. e4 {[%clk 0:03:00.9]} 1... c6 {[%clk 0:02:59]} 2. d4 {[%clk 0:03:00.1]} 2...
d5 {[%clk 0:02:59.9]} 3. Nc3 {[%clk 0:03:00.5]} 3... dxe4 {[%clk 0:02:55.1]} 4.
Nxe4 {[%clk 0:03:01.4]} 4... Nf6 {[%clk 0:02:55.8]} 5. Nxf6+ {[%clk 0:02:59.5]}
5... exf6 {[%clk 0:02:56.7]} 6. c3 {[%clk 0:02:59.4]} 6... Be7 {[%clk
0:02:52.1]} 7. Bd3 {[%clk 0:02:59.4]} 7... O-O {[%clk 0:02:53]} 8. Ne2 {[%clk
0:02:59.8]} 8... f5 {[%clk 0:02:47.5]} 9. Qc2 {[%clk 0:02:55.6]} 9... g6 {[%clk
0:02:46.7]} 10. Bh6 {[%clk 0:02:53.4]} 10... Re8 {[%clk 0:02:45.8]} 11. g3
{[%clk 0:02:36.4]} 11... Bg5 {[%clk 0:02:38.3]} 12. Bxg5 {[%clk 0:02:32.9]}
12... Qxg5 {[%clk 0:02:39.2]} 13. h4 {[%clk 0:02:33]} 13... Qg4 {[%clk
0:02:38.9]} 14. O-O-O {[%clk 0:02:24.2]} 14... Be6 {[%clk 0:02:36.5]} 15. Kb1
{[%clk 0:02:22.7]} 15... Bd5 {[%clk 0:02:34.3]} 16. Rh2 {[%clk 0:02:04.3]} 16...
Bf3 {[%clk 0:02:22.5]} 17. Rd2 {[%clk 0:02:03]} 17... Nd7 {[%clk 0:02:21.1]} 18.
Ng1 {[%clk 0:01:56.6]} 18... Re1+ {[%clk 0:02:17.5]} 0-1

[Event "*** SCC Grand Prix: Titled Tuesday Blitz"]
[Site "Chess.com"]
[Date "2020.08.25"]
[Round "7"]
[White "praveenb2002"]
[Black "talman67"]
[Result "1-0"]
[WhiteElo "2745"]
[BlackElo "2506"]
[TimeControl "180+1"]
[EndTime "11:15:34 PDT"]
[Termination "praveenb2002 won by resignation"]

1. d4 {[%clk 0:03:00.9]} 1... Nf6 {[%clk 0:02:59.7]} 2. c4 {[%clk 0:03:01]} 2...
e6 {[%clk 0:02:59.4]} 3. Nc3 {[%clk 0:03:01.1]} 3... Bb4 {[%clk 0:02:58.7]} 4.
Qc2 {[%clk 0:03:01.6]} 4... O-O {[%clk 0:02:57.8]} 5. a3 {[%clk 0:03:02.1]} 5...
Bxc3+ {[%clk 0:02:57.5]} 6. Qxc3 {[%clk 0:03:03]} 6... d5 {[%clk 0:02:58.1]} 7.
Bg5 {[%clk 0:03:00.3]} 7... c5 {[%clk 0:02:57.5]} 8. dxc5 {[%clk 0:02:54.3]}
8... d4 {[%clk 0:02:56]} 9. Qc2 {[%clk 0:02:53.8]} 9... Nbd7 {[%clk 0:02:50.6]}
10. b4 {[%clk 0:02:51]} 10... a5 {[%clk 0:02:50.4]} 11. Rd1 {[%clk 0:02:44.2]}
11... axb4 {[%clk 0:02:45.5]} 12. axb4 {[%clk 0:02:45.1]} 12... e5 {[%clk
0:02:46.3]} 13. e4 {[%clk 0:02:42.7]} 13... Qc7 {[%clk 0:01:54]} 14. Bd3 {[%clk
0:02:39.4]} 14... h6 {[%clk 0:01:45.7]} 15. Bh4 {[%clk 0:02:39.2]} 15... Nh5
{[%clk 0:01:45.7]} 16. Ne2 {[%clk 0:02:33.2]} 16... Nf4 {[%clk 0:01:35.6]} 17.
Nxf4 {[%clk 0:02:30.1]} 17... exf4 {[%clk 0:01:36.5]} 18. Be7 {[%clk 0:02:30.5]}
18... Re8 {[%clk 0:01:34.1]} 19. Bd6 {[%clk 0:02:30.6]} 19... Qc6 {[%clk
0:01:32]} 20. b5 {[%clk 0:02:31.1]} 1-0

[Event "*** SCC Grand Prix: Titled Tuesday Blitz"]
[Site "Chess.com"]
[Date "2020.08.25"]
[Round "7"]
[White "Ginger_GM"]
[Black "Chessbard1972"]
[Result "1-0"]
[WhiteElo "2563"]
[BlackElo "2399"]
[TimeControl "180+1"]
[EndTime "11:15:48 PDT"]
[Termination "Ginger_GM won by resignation"]

1. e4 {[%clk 0:03:00.9]} 1... c5 {[%clk 0:02:59.1]} 2. a3 {[%clk 0:02:54.9]}
2... d5 {[%clk 0:02:54.9]} 3. exd5 {[%clk 0:02:54]} 3... Qxd5 {[%clk 0:02:54.8]}
4. Nc3 {[%clk 0:02:53.7]} 4... Qd8 {[%clk 0:02:54.1]} 5. b4 {[%clk 0:02:53.3]}
5... e6 {[%clk 0:02:51.6]} 6. bxc5 {[%clk 0:02:48.4]} 6... Bxc5 {[%clk
0:02:50.5]} 7. Nf3 {[%clk 0:02:48.2]} 7... Nc6 {[%clk 0:02:49.1]} 8. Bb5 {[%clk
0:02:40.2]} 8... a6 {[%clk 0:02:37.5]} 9. Bxc6+ {[%clk 0:02:37.2]} 9... bxc6
{[%clk 0:02:37.1]} 10. d4 {[%clk 0:02:37.2]} 10... Be7 {[%clk 0:02:32.2]} 11.
O-O {[%clk 0:02:36.3]} 11... Nf6 {[%clk 0:02:31.8]} 12. Be3 {[%clk 0:02:21.8]}
12... O-O {[%clk 0:02:30]} 13. a4 {[%clk 0:02:21.4]} 13... a5 {[%clk 0:02:28.9]}
14. Re1 {[%clk 0:02:19.2]} 14... Nd5 {[%clk 0:02:27.5]} 15. Nxd5 {[%clk
0:02:15.9]} 15... cxd5 {[%clk 0:02:26.6]} 16. Ne5 {[%clk 0:02:12.4]} 16... Bf6
{[%clk 0:02:21.7]} 17. Bf4 {[%clk 0:02:10.2]} 17... Ba6 {[%clk 0:02:19.2]} 18.
Ra3 {[%clk 0:02:09.7]} 18... Rc8 {[%clk 0:02:17.9]} 19. Rh3 {[%clk 0:02:09]}
19... g6 {[%clk 0:02:15.1]} 20. Ng4 {[%clk 0:02:02.9]} 20... Bg7 {[%clk
0:02:13.8]} 21. Bh6 {[%clk 0:01:56.8]} 21... f6 {[%clk 0:02:03.7]} 22. Rxe6
{[%clk 0:01:53.7]} 22... Qd7 {[%clk 0:02:03.4]} 23. Rxa6 {[%clk 0:01:51.3]}
23... Qxg4 {[%clk 0:02:02.4]} 24. Qxg4 {[%clk 0:01:49.2]} 1-0

[Event "*** SCC Grand Prix: Titled Tuesday Blitz"]
[Site "Chess.com"]
[Date "2020.08.25"]
[Round "7"]
[White "Koksik_13"]
[Black "mattcolins2025"]
[Result "1-0"]
[WhiteElo "2674"]
[BlackElo "2472"]
[TimeControl "180+1"]
[EndTime "11:16:07 PDT"]
[Termination "Koksik_13 won by resignation"]

1. d4 {[%clk 0:03:00.8]} 1... Nf6 {[%clk 0:02:59.9]} 2. Nc3 {[%clk 0:03:01.1]}
2... g6 {[%clk 0:03:00.3]} 3. e4 {[%clk 0:03:01]} 3... d6 {[%clk 0:03:00.8]} 4.
Bg5 {[%clk 0:03:01.6]} 4... Bg7 {[%clk 0:03:01]} 5. f4 {[%clk 0:03:01.9]} 5...
h6 {[%clk 0:03:01.1]} 6. Bh4 {[%clk 0:03:01.8]} 6... O-O {[%clk 0:03:01]} 7. Nf3
{[%clk 0:03:01.9]} 7... c5 {[%clk 0:03:00.9]} 8. e5 {[%clk 0:02:55.8]} 8... Ne8
{[%clk 0:03:01]} 9. dxc5 {[%clk 0:02:53.8]} 9... Qc7 {[%clk 0:02:50.6]} 10. Nd5
{[%clk 0:02:46.2]} 10... Qxc5 {[%clk 0:02:50.1]} 11. Bxe7 {[%clk 0:02:46.1]}
11... Qa5+ {[%clk 0:02:49.7]} 12. b4 {[%clk 0:02:45.2]} 12... Qa3 {[%clk
0:02:49.7]} 13. Bxf8 {[%clk 0:02:40.3]} 13... Bxf8 {[%clk 0:02:49.7]} 14. Bd3
{[%clk 0:02:35.4]} 14... Bg4 {[%clk 0:02:49.5]} 15. O-O {[%clk 0:02:34.4]} 15...
dxe5 {[%clk 0:02:49.6]} 16. fxe5 {[%clk 0:02:33.3]} 16... Nc6 {[%clk 0:02:49.4]}
17. Qd2 {[%clk 0:02:32]} 17... Nxb4 {[%clk 0:02:43.5]} 18. Nxb4 {[%clk
0:02:24.6]} 18... Bxb4 {[%clk 0:02:43.1]} 19. Qf4 {[%clk 0:02:25.3]} 19... Be6
{[%clk 0:02:41]} 20. Nd4 {[%clk 0:02:23.6]} 20... Bc5 {[%clk 0:02:40]} 21. Kh1
{[%clk 0:02:24]} 21... Bxd4 {[%clk 0:02:37.7]} 22. Qxd4 {[%clk 0:02:24.9]} 22...
Rc8 {[%clk 0:02:33.9]} 23. Qf4 {[%clk 0:02:19.5]} 23... Qc3 {[%clk 0:02:31.6]}
24. Rae1 {[%clk 0:02:18.3]} 24... Nc7 {[%clk 0:02:28.2]} 25. Qxh6 {[%clk
0:02:16.1]} 25... Re8 {[%clk 0:02:07.4]} 26. Bxg6 {[%clk 0:02:15.2]} 26... fxg6
{[%clk 0:02:07.1]} 27. Qxg6+ {[%clk 0:02:16.1]} 27... Kh8 {[%clk 0:02:07.6]} 28.
Qh6+ {[%clk 0:02:13.8]} 28... Kg8 {[%clk 0:02:07.7]} 29. Re3 {[%clk 0:02:14.5]}
29... Qc4 {[%clk 0:02:03]} 30. Qg6+ {[%clk 0:02:11.8]} 30... Kh8 {[%clk
0:02:01.7]} 31. Qh6+ {[%clk 0:02:08.1]} 31... Kg8 {[%clk 0:02:01.6]} 32. Rg3+
{[%clk 0:02:08.6]} 32... Bg4 {[%clk 0:02:01.2]} 33. Qg5+ {[%clk 0:02:09.2]}
33... Kh8 {[%clk 0:01:59.6]} 34. Qh4+ {[%clk 0:02:09.7]} 34... Kg7 {[%clk
0:01:56.9]} 35. Rxg4+ {[%clk 0:02:09.7]} 35... Qxg4 {[%clk 0:01:57.1]} 36. Qxg4+
{[%clk 0:02:10.5]} 1-0

[Event "*** SCC Grand Prix: Titled Tuesday Blitz"]
[Site "Chess.com"]
[Date "2020.08.25"]
[Round "7"]
[White "binbin239"]
[Black "MF1966Idrisov"]
[Result "0-1"]
[WhiteElo "2561"]
[BlackElo "2370"]
[TimeControl "180+1"]
[EndTime "11:16:32 PDT"]
[Termination "MF1966Idrisov won by resignation"]

1. d4 {[%clk 0:03:00.9]} 1... d5 {[%clk 0:02:58.5]} 2. c4 {[%clk 0:03:01.2]}
2... e6 {[%clk 0:02:58.6]} 3. Nf3 {[%clk 0:03:01.6]} 3... Nf6 {[%clk 0:02:58.7]}
4. g3 {[%clk 0:03:02]} 4... Be7 {[%clk 0:02:58.5]} 5. Bg2 {[%clk 0:03:02.5]}
5... O-O {[%clk 0:02:57.7]} 6. O-O {[%clk 0:03:02.9]} 6... Bd7 {[%clk
0:02:57.3]} 7. Nc3 {[%clk 0:03:02.1]} 7... c6 {[%clk 0:02:53.8]} 8. Qd3 {[%clk
0:03:01]} 8... a6 {[%clk 0:02:51.3]} 9. e4 {[%clk 0:02:59.9]} 9... dxe4 {[%clk
0:02:50.6]} 10. Nxe4 {[%clk 0:02:59.2]} 10... Nxe4 {[%clk 0:02:49.9]} 11. Qxe4
{[%clk 0:03:00.1]} 11... Be8 {[%clk 0:02:49]} 12. Rd1 {[%clk 0:02:59.3]} 12...
Nd7 {[%clk 0:02:48.4]} 13. b3 {[%clk 0:02:58.3]} 13... Qc7 {[%clk 0:02:45.2]}
14. Bf4 {[%clk 0:02:57.2]} 14... Bd6 {[%clk 0:02:44.2]} 15. Be3 {[%clk
0:02:55.2]} 15... Nf6 {[%clk 0:02:43.5]} 16. Qc2 {[%clk 0:02:55.1]} 16... Rd8
{[%clk 0:02:42.3]} 17. Rac1 {[%clk 0:02:54.5]} 17... Bd7 {[%clk 0:02:38.6]} 18.
Bg5 {[%clk 0:02:53.3]} 18... Be7 {[%clk 0:02:36.9]} 19. Bf4 {[%clk 0:02:53.2]}
19... Bd6 {[%clk 0:02:36.5]} 20. Ne5 {[%clk 0:02:53.3]} 20... h6 {[%clk
0:02:34]} 21. c5 {[%clk 0:02:44]} 21... Bxe5 {[%clk 0:02:18.8]} 22. Bxe5 {[%clk
0:02:43.6]} 22... Qc8 {[%clk 0:02:17.6]} 23. Bxf6 {[%clk 0:02:43.6]} 23... gxf6
{[%clk 0:02:17.8]} 24. Qe2 {[%clk 0:02:43.5]} 24... f5 {[%clk 0:02:10.6]} 25.
Qh5 {[%clk 0:02:41.4]} 25... Kg7 {[%clk 0:02:10.8]} 26. g4 {[%clk 0:02:35.9]}
26... Rde8 {[%clk 0:02:00]} 27. Rd3 {[%clk 0:02:33.8]} 27... Qd8 {[%clk
0:01:54.6]} 28. gxf5 {[%clk 0:02:29.9]} 28... exf5 {[%clk 0:01:42.9]} 29. Rg3+
{[%clk 0:02:29.2]} 29... Kh7 {[%clk 0:01:42.1]} 30. Bh3 {[%clk 0:02:27.4]} 30...
Qf6 {[%clk 0:01:39.3]} 31. Kh1 {[%clk 0:02:21.2]} 31... Rg8 {[%clk 0:01:38.5]}
32. Rf3 {[%clk 0:02:17.7]} 32... Rg5 {[%clk 0:01:37]} 33. Bxf5+ {[%clk
0:02:11.3]} 33... Bxf5 {[%clk 0:01:34.2]} 34. Qh3 {[%clk 0:02:05.6]} 34... Be4
{[%clk 0:01:30.6]} 0-1

[Event "*** SCC Grand Prix: Titled Tuesday Blitz"]
[Site "Chess.com"]
[Date "2020.08.25"]
[Round "7"]
[White "RU_B9"]
[Black "Yana_pro"]
[Result "1-0"]
[WhiteElo "1857"]
[BlackElo "2088"]
[TimeControl "180+1"]
[EndTime "11:16:36 PDT"]
[Termination "RU_B9 won by resignation"]

1. c4 {[%clk 0:03:00.9]} 1... Nf6 {[%clk 0:02:59.4]} 2. Nc3 {[%clk 0:02:59.5]}
2... g6 {[%clk 0:03:00.3]} 3. Nf3 {[%clk 0:02:58.7]} 3... Bg7 {[%clk 0:03:00.1]}
4. e4 {[%clk 0:02:59.2]} 4... d6 {[%clk 0:02:59.7]} 5. d4 {[%clk 0:02:59.8]}
5... O-O {[%clk 0:03:00.2]} 6. Be2 {[%clk 0:03:00.3]} 6... Nc6 {[%clk
0:03:00.7]} 7. O-O {[%clk 0:02:59.9]} 7... e5 {[%clk 0:03:01.2]} 8. d5 {[%clk
0:03:00.5]} 8... Ne7 {[%clk 0:03:01.7]} 9. Ne1 {[%clk 0:03:00.6]} 9... a5 {[%clk
0:02:59.5]} 10. Be3 {[%clk 0:02:52.5]} 10... b6 {[%clk 0:02:58.9]} 11. a3 {[%clk
0:02:49.4]} 11... Nd7 {[%clk 0:02:58.1]} 12. b4 {[%clk 0:02:44.2]} 12... Bb7
{[%clk 0:02:55.3]} 13. Nd3 {[%clk 0:02:33.8]} 13... f5 {[%clk 0:02:54.5]} 14. f3
{[%clk 0:02:33.6]} 14... axb4 {[%clk 0:02:50]} 15. axb4 {[%clk 0:02:33]} 15...
Rxa1 {[%clk 0:02:50.9]} 16. Qxa1 {[%clk 0:02:33.1]} 16... Qa8 {[%clk 0:02:51.8]}
17. Nb5 {[%clk 0:02:26.4]} 17... fxe4 {[%clk 0:02:49.1]} 18. Qxa8 {[%clk
0:02:02.8]} 18... Rxa8 {[%clk 0:02:39.2]} 19. fxe4 {[%clk 0:02:03]} 19... Rc8
{[%clk 0:02:39.2]} 20. Ra1 {[%clk 0:01:58.6]} 20... Ra8 {[%clk 0:01:59.6]} 21.
Rxa8+ {[%clk 0:01:56.7]} 21... Bxa8 {[%clk 0:02:00.5]} 22. Nxc7 {[%clk
0:01:55.7]} 22... Bb7 {[%clk 0:02:01]} 23. Bg4 {[%clk 0:01:55.5]} 23... Nb8
{[%clk 0:01:55.2]} 24. Ne8 {[%clk 0:01:38]} 24... b5 {[%clk 0:01:50.4]} 25. cxb5
{[%clk 0:01:35.2]} 25... Nxd5 {[%clk 0:01:34.8]} 1-0

[Event "*** SCC Grand Prix: Titled Tuesday Blitz"]
[Site "Chess.com"]
[Date "2020.08.25"]
[Round "7"]
[White "kidagent"]
[Black "eCztery"]
[Result "0-1"]
[WhiteElo "2250"]
[BlackElo "2407"]
[TimeControl "180+1"]
[EndTime "11:16:43 PDT"]
[Termination "eCztery won by checkmate"]

1. e4 {[%clk 0:03:00.9]} 1... e5 {[%clk 0:02:58.2]} 2. Nf3 {[%clk 0:03:00.8]}
2... Nf6 {[%clk 0:02:57.2]} 3. Nc3 {[%clk 0:02:59.8]} 3... d6 {[%clk 0:02:50.5]}
4. d4 {[%clk 0:02:49.2]} 4... Nbd7 {[%clk 0:02:50.1]} 5. Bc4 {[%clk 0:02:44.5]}
5... Be7 {[%clk 0:02:49.8]} 6. Bxf7+ {[%clk 0:02:33.8]} 6... Kxf7 {[%clk
0:02:47.8]} 7. Ng5+ {[%clk 0:02:34.3]} 7... Kg8 {[%clk 0:02:47.4]} 8. Ne6 {[%clk
0:02:33.8]} 8... Qe8 {[%clk 0:02:44]} 9. Nxc7 {[%clk 0:02:33.6]} 9... Qg6 {[%clk
0:02:41.9]} 10. Nxa8 {[%clk 0:02:28.7]} 10... Qxg2 {[%clk 0:02:31.5]} 11. Rf1
{[%clk 0:02:28]} 11... exd4 {[%clk 0:02:08.8]} 12. Qxd4 {[%clk 0:02:25]} 12...
Ne5 {[%clk 0:02:09.3]} 13. Qxa7 {[%clk 0:01:38]} 13... Bh3 {[%clk 0:01:51.9]}
14. Qb8+ {[%clk 0:01:07.9]} 14... Kf7 {[%clk 0:01:50.9]} 15. Qxh8 {[%clk
0:00:49.4]} 15... Qxf1+ {[%clk 0:01:48.8]} 16. Kd2 {[%clk 0:00:48.9]} 16... Nc4#
{[%clk 0:01:49.2]} 0-1

[Event "*** SCC Grand Prix: Titled Tuesday Blitz"]
[Site "Chess.com"]
[Date "2020.08.25"]
[Round "7"]
[White "chesstatour"]
[Black "jacky72"]
[Result "0-1"]
[WhiteElo "1922"]
[BlackElo "2528"]
[TimeControl "180+1"]
[EndTime "11:17:05 PDT"]
[Termination "jacky72 won by checkmate"]

1. c4 {[%clk 0:03:00.2]} 1... e6 {[%clk 0:02:57.8]} 2. Nc3 {[%clk 0:03:00.3]}
2... b6 {[%clk 0:02:58]} 3. e4 {[%clk 0:03:00.2]} 3... Bb7 {[%clk 0:02:58.9]} 4.
d4 {[%clk 0:02:58.4]} 4... d5 {[%clk 0:02:56.8]} 5. cxd5 {[%clk 0:02:57.8]} 5...
exd5 {[%clk 0:02:57.5]} 6. e5 {[%clk 0:02:58.5]} 6... c5 {[%clk 0:02:57.1]} 7.
f4 {[%clk 0:02:56.9]} 7... Ne7 {[%clk 0:02:57]} 8. Nf3 {[%clk 0:02:56.2]} 8...
Nbc6 {[%clk 0:02:56.4]} 9. Bb5 {[%clk 0:02:54.6]} 9... a6 {[%clk 0:02:55.7]} 10.
Bxc6+ {[%clk 0:02:54]} 10... Nxc6 {[%clk 0:02:55.5]} 11. O-O {[%clk 0:02:54.7]}
11... cxd4 {[%clk 0:02:54.7]} 12. Nxd4 {[%clk 0:02:52.6]} 12... Nxd4 {[%clk
0:02:54.3]} 13. f5 {[%clk 0:02:45.6]} 13... Bc5 {[%clk 0:02:52.7]} 14. Kh1
{[%clk 0:02:38.5]} 14... Nb5 {[%clk 0:02:44.9]} 15. Qg4 {[%clk 0:02:26.4]} 15...
Nxc3 {[%clk 0:02:43.1]} 16. Qxg7 {[%clk 0:02:14.1]} 16... Rf8 {[%clk 0:02:40.1]}
17. bxc3 {[%clk 0:01:55.5]} 17... d4 {[%clk 0:02:39.8]} 18. Bg5 {[%clk 0:01:17]}
18... Qd5 {[%clk 0:02:34.2]} 19. Rf3 {[%clk 0:01:04.8]} 19... dxc3 {[%clk
0:02:28.6]} 20. Re1 {[%clk 0:00:54.5]} 20... c2 {[%clk 0:02:27.6]} 21. e6 {[%clk
0:00:47]} 21... Qd1 {[%clk 0:02:28.1]} 22. exf7+ {[%clk 0:00:23.5]} 22... Kd7
{[%clk 0:02:27.6]} 23. Rff1 {[%clk 0:00:10.7]} 23... Qg4 {[%clk 0:02:27.9]} 24.
Bf6 {[%clk 0:00:05.6]} 24... Bxg2# {[%clk 0:02:26.8]} 0-1

[Event "*** SCC Grand Prix: Titled Tuesday Blitz"]
[Site "Chess.com"]
[Date "2020.08.25"]
[Round "7"]
[White "Bubachess1608"]
[Black "evgenyermolaev"]
[Result "0-1"]
[WhiteElo "2262"]
[BlackElo "2476"]
[TimeControl "180+1"]
[EndTime "11:17:11 PDT"]
[Termination "evgenyermolaev won by resignation"]

1. e4 {[%clk 0:03:00.9]} 1... c5 {[%clk 0:02:58.9]} 2. d3 {[%clk 0:03:00.4]}
2... Nc6 {[%clk 0:02:51.4]} 3. c3 {[%clk 0:02:59.6]} 3... e6 {[%clk 0:02:51.4]}
4. f4 {[%clk 0:02:58.7]} 4... d5 {[%clk 0:02:50.9]} 5. Qe2 {[%clk 0:02:58.5]}
5... Nf6 {[%clk 0:02:35.9]} 6. Nf3 {[%clk 0:02:55.5]} 6... Be7 {[%clk
0:02:13.2]} 7. g3 {[%clk 0:02:54.9]} 7... O-O {[%clk 0:02:10.7]} 8. Bg2 {[%clk
0:02:54.1]} 8... dxe4 {[%clk 0:01:54.3]} 9. dxe4 {[%clk 0:02:53.4]} 9... Qa5
{[%clk 0:01:53.4]} 10. O-O {[%clk 0:02:48.9]} 10... b6 {[%clk 0:01:31.7]} 11.
Re1 {[%clk 0:02:47.6]} 11... Ba6 {[%clk 0:01:28.5]} 12. Qc2 {[%clk 0:02:47]}
12... c4 {[%clk 0:01:26.9]} 13. Nbd2 {[%clk 0:02:36.6]} 13... Bc5+ {[%clk
0:01:01.6]} 14. Nd4 {[%clk 0:02:31.8]} 14... Nxd4 {[%clk 0:00:57.4]} 15. cxd4
{[%clk 0:02:31.4]} 15... Bxd4+ {[%clk 0:00:58.3]} 16. Kh1 {[%clk 0:02:31.4]}
16... Ng4 {[%clk 0:00:58.1]} 17. Nf3 {[%clk 0:02:26.4]} 17... Nf2+ {[%clk
0:00:54.3]} 18. Kg1 {[%clk 0:02:25.4]} 18... Nd3+ {[%clk 0:00:40.7]} 19. Kf1
{[%clk 0:02:23.8]} 19... Nxe1 {[%clk 0:00:32]} 20. Nxe1 {[%clk 0:02:23]} 20...
c3+ {[%clk 0:00:31.8]} 21. Nd3 {[%clk 0:02:22.5]} 21... cxb2 {[%clk 0:00:31.2]}
22. Bxb2 {[%clk 0:02:21.1]} 22... Bxb2 {[%clk 0:00:29.6]} 23. Qxb2 {[%clk
0:02:20.2]} 23... Bxd3+ {[%clk 0:00:30]} 24. Kg1 {[%clk 0:02:20]} 24... Qc5+
{[%clk 0:00:28.6]} 25. Kh1 {[%clk 0:02:19.2]} 25... Rfd8 {[%clk 0:00:29.5]} 26.
f5 {[%clk 0:02:18.3]} 26... Qd4 {[%clk 0:00:29.7]} 0-1

[Event "*** SCC Grand Prix: Titled Tuesday Blitz"]
[Site "Chess.com"]
[Date "2020.08.25"]
[Round "7"]
[White "FairChess_on_YouTube"]
[Black "crescentmoon2411"]
[Result "1-0"]
[WhiteElo "2989"]
[BlackElo "2770"]
[TimeControl "180+1"]
[EndTime "11:17:17 PDT"]
[Termination "FairChess_on_YouTube won by resignation"]

1. e4 {[%clk 0:03:00.9]} 1... e5 {[%clk 0:02:59.1]} 2. Nf3 {[%clk 0:03:00.6]}
2... Nc6 {[%clk 0:02:59.5]} 3. Bb5 {[%clk 0:03:00.9]} 3... Nf6 {[%clk
0:02:58.6]} 4. O-O {[%clk 0:03:00.2]} 4... Nxe4 {[%clk 0:02:57.9]} 5. d4 {[%clk
0:03:00.2]} 5... Nd6 {[%clk 0:02:57.6]} 6. Bxc6 {[%clk 0:03:00.4]} 6... dxc6
{[%clk 0:02:58.5]} 7. dxe5 {[%clk 0:03:00.8]} 7... Nf5 {[%clk 0:02:59.1]} 8.
Qxd8+ {[%clk 0:03:01.4]} 8... Kxd8 {[%clk 0:03:00]} 9. Rd1+ {[%clk 0:03:00.4]}
9... Ke8 {[%clk 0:02:59]} 10. Nc3 {[%clk 0:03:00.9]} 10... Be6 {[%clk
0:02:48.4]} 11. h3 {[%clk 0:02:55.1]} 11... h6 {[%clk 0:02:39.9]} 12. g4 {[%clk
0:02:52.5]} 12... Ne7 {[%clk 0:02:39.7]} 13. Nd4 {[%clk 0:02:52.6]} 13... Nd5
{[%clk 0:02:28.7]} 14. Nxe6 {[%clk 0:02:46.5]} 14... fxe6 {[%clk 0:02:29.6]} 15.
Ne4 {[%clk 0:02:44.2]} 15... b5 {[%clk 0:02:04.2]} 16. b3 {[%clk 0:02:27.1]}
16... Bb4 {[%clk 0:01:39.1]} 17. Rd3 {[%clk 0:02:13.1]} 17... Rd8 {[%clk
0:01:29.7]} 18. a4 {[%clk 0:01:32.9]} 18... a6 {[%clk 0:01:03.7]} 19. axb5
{[%clk 0:01:32.6]} 19... axb5 {[%clk 0:01:04.2]} 20. c4 {[%clk 0:01:31.2]} 20...
bxc4 {[%clk 0:00:59.1]} 21. bxc4 {[%clk 0:01:32.1]} 21... Nb6 {[%clk 0:00:59.2]}
22. Rxd8+ {[%clk 0:01:30.6]} 22... Kxd8 {[%clk 0:00:59.3]} 23. c5 {[%clk
0:01:29.3]} 23... Nc8 {[%clk 0:00:56.9]} 24. Ra4 {[%clk 0:01:28.3]} 1-0

[Event "*** SCC Grand Prix: Titled Tuesday Blitz"]
[Site "Chess.com"]
[Date "2020.08.25"]
[Round "7"]
[White "Ashedu66"]
[Black "salimalamri2020"]
[Result "1-0"]
[WhiteElo "2198"]
[BlackElo "2025"]
[TimeControl "180+1"]
[EndTime "11:17:18 PDT"]
[Termination "Ashedu66 won by resignation"]

1. d4 {[%clk 0:03:00.9]} 1... e6 {[%clk 0:02:58.5]} 2. e4 {[%clk 0:03:00.4]}
2... d5 {[%clk 0:02:58.2]} 3. Nc3 {[%clk 0:03:00.5]} 3... Bb4 {[%clk 0:02:57.9]}
4. exd5 {[%clk 0:03:00]} 4... exd5 {[%clk 0:02:57]} 5. Bd3 {[%clk 0:03:00.1]}
5... Nf6 {[%clk 0:02:56.7]} 6. Ne2 {[%clk 0:02:58.1]} 6... Be6 {[%clk 0:02:53]}
7. h3 {[%clk 0:02:56.7]} 7... Nbd7 {[%clk 0:02:50.9]} 8. Ng3 {[%clk 0:02:54.6]}
8... c5 {[%clk 0:02:51.2]} 9. a3 {[%clk 0:02:50.4]} 9... cxd4 {[%clk 0:02:48.7]}
10. axb4 {[%clk 0:02:49.2]} 10... dxc3 {[%clk 0:02:48.4]} 11. bxc3 {[%clk
0:02:49.3]} 11... Qc7 {[%clk 0:02:46.8]} 12. O-O {[%clk 0:02:30.7]} 12... Qxc3
{[%clk 0:02:43.9]} 13. b5 {[%clk 0:02:13.2]} 13... O-O {[%clk 0:02:42.6]} 14.
Be3 {[%clk 0:02:05.2]} 14... Ne5 {[%clk 0:02:38.4]} 15. Bd4 {[%clk 0:01:36]}
15... Qc7 {[%clk 0:02:36.9]} 16. Re1 {[%clk 0:01:16.1]} 16... Nxd3 {[%clk
0:02:31.8]} 17. Qxd3 {[%clk 0:01:15.2]} 17... Nd7 {[%clk 0:02:30.3]} 18. Nh5
{[%clk 0:01:10.1]} 18... g6 {[%clk 0:02:24.5]} 19. Qe3 {[%clk 0:00:53.3]} 1-0

[Event "*** SCC Grand Prix: Titled Tuesday Blitz"]
[Site "Chess.com"]
[Date "2020.08.25"]
[Round "7"]
[White "rududuyk"]
[Black "Sophist4Life"]
[Result "0-1"]
[WhiteElo "2166"]
[BlackElo "2450"]
[TimeControl "180+1"]
[EndTime "11:17:21 PDT"]
[Termination "Sophist4Life won by resignation"]

1. e4 {[%clk 0:03:00.9]} 1... c5 {[%clk 0:02:59.8]} 2. Nc3 {[%clk 0:03:00.6]}
2... d6 {[%clk 0:02:59.4]} 3. f4 {[%clk 0:03:00.2]} 3... Nc6 {[%clk 0:02:58.4]}
4. Nf3 {[%clk 0:03:00.7]} 4... g6 {[%clk 0:02:58.9]} 5. Bc4 {[%clk 0:03:01.2]}
5... Bg7 {[%clk 0:02:59.4]} 6. O-O {[%clk 0:03:01.7]} 6... e6 {[%clk 0:02:59.8]}
7. d3 {[%clk 0:03:01.7]} 7... Nge7 {[%clk 0:03:00.2]} 8. Qe1 {[%clk 0:03:02.2]}
8... Nd4 {[%clk 0:03:00.6]} 9. Qf2 {[%clk 0:02:50.7]} 9... O-O {[%clk
0:02:56.7]} 10. Be3 {[%clk 0:02:41.6]} 10... d5 {[%clk 0:02:54.7]} 11. exd5
{[%clk 0:02:04]} 11... exd5 {[%clk 0:02:55.6]} 12. Nxd4 {[%clk 0:01:52]} 12...
cxd4 {[%clk 0:02:54.8]} 13. Bxd4 {[%clk 0:01:51.5]} 13... dxc4 {[%clk 0:02:55]}
14. Bxg7 {[%clk 0:01:48.5]} 14... Kxg7 {[%clk 0:02:55.9]} 15. dxc4 {[%clk
0:01:41.3]} 15... Be6 {[%clk 0:02:55.5]} 16. b3 {[%clk 0:01:39.6]} 16... Nf5
{[%clk 0:02:53.2]} 17. Rad1 {[%clk 0:01:28.7]} 17... Qf6 {[%clk 0:02:51.9]} 18.
Nd5 {[%clk 0:01:22.1]} 18... Bxd5 {[%clk 0:02:50.3]} 19. cxd5 {[%clk 0:01:23]}
19... Rfe8 {[%clk 0:02:49.8]} 20. Rd3 {[%clk 0:01:20.3]} 20... b6 {[%clk
0:02:47.4]} 21. c4 {[%clk 0:01:18.4]} 21... Rad8 {[%clk 0:02:46.7]} 22. Rfd1
{[%clk 0:01:17.1]} 22... Nd6 {[%clk 0:02:46.1]} 23. Rf3 {[%clk 0:00:59.3]} 23...
Re4 {[%clk 0:02:41.6]} 24. g4 {[%clk 0:00:52.8]} 24... Rde8 {[%clk 0:02:38.7]}
25. h3 {[%clk 0:00:50.8]} 25... Re2 {[%clk 0:02:38.3]} 26. Qg3 {[%clk
0:00:43.9]} 26... Ne4 {[%clk 0:02:38.5]} 27. g5 {[%clk 0:00:37.3]} 27... Qd6
{[%clk 0:02:11.6]} 28. Qg4 {[%clk 0:00:36.6]} 28... Qc5+ {[%clk 0:02:08.4]} 29.
Kh1 {[%clk 0:00:25.8]} 29... Nf2+ {[%clk 0:02:08.4]} 30. Rxf2 {[%clk 0:00:25.6]}
30... Qxf2 {[%clk 0:02:09.2]} 0-1